bitfinex-derivatives/quotes_ETHF0:USTF0_20250620
["timestamp","ask_amount","ask_price","bid_price","bid_amount"]
[1750411560192,3.2078,2549.4,2549.3,0.78438]
[1750411562690,0.6433,2549.7,2549.6,0.78429]
[1750411562889,75.625,2549.9,2549.8,0.78423]
[1750411563096,76.4092,2549.9,2549.8,0.78423]
[1750411563391,77.7041,2549.9,2549.8,0.78423]
[1750411563586,77.7051,2549.9,2549.8,0.78423]
[1750411563791,76.9209,2549.9,2549.8,0.78423]
[1750411564589,51.482,2549.9,2549.8,0.78423]
[1750411564798,75.619,2549.9,2549.8,0.78423]
[1750411565291,75.617,2549.9,2549.8,0.78423]
[1750411565680,51.482,2549.9,2549.8,0.78423]
[1750411565988,75.617,2549.9,2549.8,0.78423]
[1750411567191,75.617,2549.9,2549.8,1.70423]
[1750411569092,3.2078,2550.0,2549.9,0.7842]
[1750411569283,27.3298,2550.0,2549.9,0.7842]
[1750411569982,3.2078,2550.0,2549.9,0.7842]
[1750411570387,4.5167,2550.0,2549.9,0.7842]
[1750411571596,5.30087,2550.0,2549.9,0.7842]
[1750411571797,4.5167,2550.0,2549.9,0.7842]
[1750411574700,5.30087,2550.0,2549.9,0.7842]
[1750411575298,4.5167,2550.0,2549.9,0.7842]
[1750411576001,5.30087,2550.0,2549.9,0.7842]
[1750411576203,4.5167,2550.0,2549.9,0.7842]
[1750411582707,5.30087,2550.0,2549.9,0.7842]
[1750411584916,4.5167,2550.0,2549.9,0.7842]
[1750411585615,8.37676461,2550.0,2549.9,0.7842]
[1750411586615,0.7842,2549.9,2549.8,1.7042]
[1750411586818,26.1444,2549.9,2549.8,1.7042]
[1750411587012,27.206605,2549.9,2549.8,1.7042]
[1750411590320,26.422405,2549.9,2549.8,1.7042]
[1750411590818,26.406405,2549.9,2549.8,1.7042]
[1750411592419,27.190605,2549.9,2549.8,1.7042]
[1750411593613,3.136605,2549.9,2549.8,1.7042]
[1750411593915,9.386605,2549.9,2549.8,1.7042]
[1750411594122,33.424605,2549.9,2549.8,1.7042]
[1750411596326,28.424605,2549.9,2549.8,1.7042]
[1750411597430,29.208805,2549.9,2549.8,1.7042]
[1750411598026,4.386605,2549.9,2549.8,1.7042]
[1750411598225,28.411605,2549.9,2549.8,1.7042]
[1750411598420,29.195805,2549.9,2549.8,1.7042]
[1750411599629,30.502605,2549.9,2549.8,1.7042]
[1750411599825,30.502605,2549.9,2549.8,0.92]
[1750411600129,0.78438,2549.3,2549.0,1.96116]
[1750411600322,31.05647,2549.2,2549.1,0.78442]
[1750411600524,30.272,2549.2,2549.1,0.78442]
[1750411601624,31.05641,2549.2,2549.1,0.78442]
[1750411602326,30.272,2549.2,2549.1,0.78442]
[1750411602718,31.05641,2549.2,2549.1,0.78442]
[1750411602917,3.2078,2549.4,2549.1,3.07589461]
[1750411603114,0.78431,2549.6,2549.5,0.78432]
[1750411603314,24.80931,2549.6,2549.5,0.78432]
[1750411604424,3.2078,2549.8,2549.7,0.78426]
[1750411604729,3.2078,2549.8,2549.7,3.86015461]
[1750411605320,3.2078,2549.8,2549.7,4.51345461]
[1750411608729,6.25,2550.0,2549.7,4.51345461]
[1750411608937,6.25,2550.0,2549.9,3.86009461]
[1750411609232,32.11106926,2550.0,2549.9,0.7842]
[1750411610835,31.32689926,2550.0,2549.9,0.7842]
[1750411611933,3.2078,2550.4,2550.2,0.78407]
[1750411612241,0.78415,2550.2,2550.1,0.78411]
[1750411612537,1.8439449,2550.2,2550.1,0.78411]
[1750411613129,3.0201149,2550.2,2549.8,3.2078]
[1750411613335,0.7842,2549.9,2549.8,3.99199]
[1750411613531,24.7912,2549.9,2549.8,0.78419]
[1750411614044,31.0412,2549.9,2549.8,0.78419]
[1750411615725,32.0995229,2549.9,2549.8,0.78419]
[1750411615930,35.17541751,2549.9,2549.8,0.78419]
[1750411616425,34.39121751,2549.9,2549.5,3.2078]
[1750411616629,3.86018461,2549.7,2549.6,0.78429]
[1750411616835,27.86818461,2549.7,2549.6,0.78429]
[1750411617032,29.79948461,2549.7,2549.6,0.78429]
[1750411618239,26.72359,2549.7,2549.6,0.78429]
[1750411618440,25.9393,2549.7,2549.6,0.78429]
[1750411618942,24.6415,2549.7,2549.6,0.78429]
[1750411620241,24.6335,2549.7,2549.6,0.78429]
[1750411621637,24.6295,2549.7,2549.6,0.78429]
[1750411624249,25.41376,2549.7,2549.6,0.78429]
[1750411624547,24.6295,2549.7,2549.6,0.78429]
[1750411627741,24.6095,2549.7,2549.6,0.78429]
[1750411629943,25.39376,2549.7,2549.6,0.78429]
[1750411630343,24.6095,2549.7,2549.6,0.78429]
[1750411630753,25.39376,2549.7,2549.6,0.78429]
[1750411631135,24.6095,2549.7,2549.6,0.78429]
[1750411632047,25.39376,2549.7,2549.6,0.78429]
[1750411632651,0.78434,2549.6,2549.5,0.7843]
[1750411633346,25.39377,2549.7,2549.6,0.78429]
[1750411635949,24.6095,2549.7,2549.6,0.78429]
[1750411636144,0.6335,2549.7,2549.6,0.78429]
[1750411636346,33.3788,2549.9,2549.8,0.78423]
[1750411636550,35.22182914,2549.9,2549.8,0.78423]
[1750411636747,34.163,2549.9,2549.8,0.78423]
[1750411637044,35.22186176,2549.9,2549.8,0.78423]
[1750411638049,34.163,2549.9,2549.8,0.78423]
[1750411638453,35.22181972,2549.9,2549.8,0.78423]
[1750411638756,34.163,2549.9,2549.8,0.78423]
[1750411638954,35.22179138,2549.9,2549.8,0.78423]
[1750411640453,35.22172832,2549.9,2549.8,0.78423]
[1750411640955,35.221725,2549.9,2549.8,0.78423]
[1750411641153,34.163,2549.9,2549.8,0.78423]
[1750411641952,35.22170454,2549.9,2549.8,0.78423]
[1750411642354,34.163,2549.9,2549.8,0.78423]
[1750411642954,3.992,2549.9,2549.8,0.78423]
[1750411643255,34.162,2549.9,2549.8,0.78423]
[1750411643458,33.3778,2549.9,2549.8,0.78423]
[1750411643758,9.4258,2549.9,2549.8,0.78423]
[1750411644149,33.3778,2549.9,2549.8,2.74553]
[1750411644750,33.3778,2549.9,2549.8,1.44633]
[1750411645656,34.162,2549.9,2549.8,1.44633]
[1750411646553,34.162,2549.9,2549.8,0.78423]
[1750411648063,33.3778,2549.9,2549.8,0.78423]
[1750411648465,30.9542,2549.9,2549.8,0.78423]
[1750411648861,30.17,2549.9,2549.8,0.78423]
[1750411649161,30.9542,2549.9,2549.8,0.78423]
[1750411651759,30.17,2549.9,2549.8,0.78423]
[1750411652861,30.9542,2549.9,2549.8,0.78423]
[1750411653059,32.01485722,2549.9,2549.8,0.78423]
[1750411653660,31.23065722,2549.9,2549.3,3.2078]
[1750411653855,3.07589461,2549.7,2549.3,3.2078]
[1750411654157,3.02123722,2549.8,2549.2,1.96103]
[1750411654158,0.78441,2549.3,2549.2,0.7844]
[1750411654367,0.78443,2549.2,2549.1,0.78442]
[1750411654669,1.43913,2549.2,2549.1,0.78442]
[1750411654855,0.78444,2549.1,2549.0,0.78446]
[1750411655050,24.73344,2549.1,2549.0,0.78446]
[1750411657964,23.949,2549.1,2549.0,0.78446]
[1750411658166,24.73344,2549.1,2549.0,0.78446]
[1750411658463,23.949,2549.1,2549.0,0.78446]
[1750411658659,24.73344,2549.1,2549.0,0.78446]
[1750411661368,23.949,2549.1,2549.0,0.78446]
[1750411661567,24.73344,2549.1,2549.0,0.78446]
[1750411663171,23.949,2549.1,2549.0,0.78446]
[1750411663556,24.73344,2549.1,2549.0,0.78446]
[1750411663761,27.80933461,2549.1,2549.0,0.78446]
[1750411663960,29.18043461,2549.1,2549.0,0.78446]
[1750411665670,29.18043461,2549.1,2548.4,1.96163]
[1750411665671,0.78454,2548.8,2548.4,1.96163]
[1750411665864,3.07589461,2548.8,2548.7,0.78455]
[1750411666064,33.3548,2548.8,2548.7,0.78455]
[1750411666263,34.13934,2548.8,2548.7,0.78455]
[1750411667769,37.21523461,2548.8,2548.7,0.78455]
[1750411667966,37.21523461,2548.8,2548.1,3.2760916]
[1750411667967,0.78472,2548.2,2548.1,3.2760916]
[1750411668170,33.25789461,2548.2,2547.6,1.96227]
[1750411668369,7.06848461,2548.0,2547.9,0.78479]
[1750411668674,0.78482,2547.9,2547.8,0.78483]
[1750411668865,0.78493,2547.6,2547.4,0.78494]
[1750411669180,24.87094,2547.5,2547.4,0.78497]
[1750411669972,0.78498,2547.4,2547.3,0.78498]
[1750411670365,26.15486,2547.5,2547.4,0.78497]
[1750411670671,26.16886,2547.5,2547.4,0.78497]
[1750411671472,25.3839,2547.5,2547.4,0.78497]
[1750411671869,24.1,2547.5,2547.4,0.78497]
[1750411672676,3.2078,2547.7,2547.6,0.7849]
[1750411672872,33.5108,2547.7,2547.6,0.7849]
[1750411673569,3.2078,2547.7,2547.6,0.7849]
[1750411673873,27.3128,2547.7,2547.6,0.7849]
[1750411674068,27.3128,2547.7,2547.6,2.7499]
[1750411674676,3.2078,2547.7,2547.6,2.7499]
[1750411675070,3.2078,2547.7,2547.6,0.7849]
[1750411678076,3.07589461,2547.9,2547.4,3.91731]
[1750411678277,24.147,2547.8,2547.7,0.78487]
[1750411679572,24.93184,2547.8,2547.7,0.78487]
[1750411679773,28.13964,2547.8,2547.7,0.78487]
[1750411680071,0.7849,2547.6,2547.5,0.6468]
[1750411680275,24.133,2547.6,2547.5,1.43173]
[1750411680672,24.9179,2547.6,2547.5,1.43173]
[1750411680872,24.133,2547.6,2547.5,1.43173]
[1750411682179,10.79096461,2547.7,2547.6,0.7849]
[1750411682383,34.92296461,2547.7,2547.6,0.7849]
[1750411683380,34.13809461,2547.7,2547.6,0.7849]
[1750411684282,34.92296461,2547.7,2547.6,0.7849]
[1750411684482,34.13809461,2547.7,2547.6,0.7849]
[1750411685078,34.92296461,2547.7,2547.6,0.7849]
[1750411686080,31.84707,2547.7,2547.6,0.7849]
[1750411686383,34.92296461,2547.7,2547.6,0.7849]
[1750411686681,0.78493,2547.6,2547.5,0.78493]
[1750411686877,0.78499,2547.4,2547.3,0.78497]
[1750411687082,0.78502,2547.3,2547.2,0.785]
[1750411687283,0.78502,2547.3,2547.1,3.27612029]
[1750411687284,27.18889461,2547.4,2547.3,0.785]
[1750411688481,27.97386461,2547.4,2547.3,0.785]
[1750411690082,3.99274,2547.5,2547.4,0.78496]
[1750411690284,34.39774,2547.5,2547.4,0.78496]
[1750411690480,34.39774,2547.5,2547.2,1.96253]
[1750411690481,0.78502,2547.3,2547.2,0.78499]
[1750411690798,24.89402,2547.3,2547.2,0.78499]
[1750411690985,24.89402,2547.3,2547.2,0.78503]
[1750411691284,27.96991461,2547.3,2547.2,0.78503]
[1750411691881,27.96991461,2547.3,2547.2,1.70503]
[1750411692687,27.96991461,2547.3,2547.2,0.92]
[1750411693586,3.2078,2547.5,2547.3,0.78496]
[1750411693788,31.19896,2547.4,2547.3,0.78496]
[1750411693983,34.27485461,2547.4,2547.3,0.78496]
[1750411695480,35.34161283,2547.4,2547.3,0.78496]
[1750411695683,0.785,2547.3,2547.2,1.705]
[1750411695990,1.4637,2547.3,2547.2,1.705]
[1750411696487,3.2078,2547.5,2547.4,0.78496]
[1750411696687,34.69199439,2547.5,2547.4,0.78496]
[1750411697087,35.47692439,2547.5,2547.4,0.78496]
[1750411697382,4.27599439,2547.5,2547.4,0.78496]
[1750411697589,1.06819439,2547.5,2547.4,3.86085461]
[1750411697985,30.415,2547.7,2547.6,0.7849]
[1750411698181,31.48462308,2547.7,2547.6,0.7849]
[1750411698583,32.26949308,2547.7,2547.6,0.7849]
[1750411698890,34.56051769,2547.7,2547.6,0.7849]
[1750411699581,35.34538769,2547.7,2547.6,0.7849]
[1750411700187,36.60528769,2547.7,2547.6,0.7849]
[1750411700592,0.78495,2547.6,2547.5,0.78492]
[1750411700787,5.06237308,2547.6,2547.5,0.78492]
[1750411701584,0.78496,2547.5,2547.4,0.78494]
[1750411701883,29.06447769,2547.5,2547.4,0.78494]
[1750411702192,0.785,2547.4,2547.3,0.78497]
[1750411702386,2.48192308,2547.4,2547.3,0.78497]
[1750411702591,0.785,2547.3,2547.2,0.92]
[1750411702886,31.49208118,2547.3,2547.2,1.70503]
[1750411703092,30.422,2547.3,2547.2,1.70503]
[1750411704293,0.6273,2547.4,2547.3,0.785]
[1750411704591,31.4881162,2547.4,2547.3,0.785]
[1750411704788,1.0701162,2547.4,2547.3,0.785]
[1750411704988,31.4901162,2547.4,2547.3,0.785]
[1750411705193,3.2078,2547.6,2547.5,0.78493]
[1750411705396,28.4080395,2547.6,2547.5,0.78493]
[1750411706986,0.78499,2547.5,2547.4,0.78494]
[1750411707180,4.93112411,2547.5,2547.4,0.78494]
[1750411707592,6.18652411,2547.5,2547.4,0.78494]
[1750411707889,0.785,2547.4,2547.3,0.78497]
[1750411708087,25.9832395,2547.4,2547.3,0.78497]
[1750411708496,25.9832395,2547.4,2547.2,0.92]
[1750411708497,25.1982395,2547.4,2547.2,0.92]
[1750411708794,15.05853411,2547.3,2547.2,0.92]
[1750411708993,16.39943411,2547.3,2547.2,0.92]
[1750411709591,22.57699411,2547.3,2546.7,0.78514]
[1750411709788,3.86104461,2546.9,2546.8,0.78513]
[1750411710093,34.57413411,2546.9,2546.8,0.78513]
[1750411710282,3.2078,2547.0,2546.9,0.78512]
[1750411710489,1.07226389,2547.0,2546.9,0.78512]
[1750411710687,3.2078,2547.4,2547.3,0.785]
[1750411715493,3.2078,2547.4,2547.3,2.0664]
[1750411719703,6.29,2547.6,2547.5,0.78493]
[1750411719894,7.3640432,2547.6,2547.5,0.78493]
[1750411720096,1.96192,2548.1,2547.9,0.78481]
[1750411720097,3.2078,2548.0,2547.9,0.78481]
[1750411720295,4.28199833,2548.0,2547.9,0.78481]
[1750411723208,5.06677833,2548.0,2547.9,0.78481]
[1750411723507,6.34837833,2548.0,2547.9,0.78481]
[1750411725507,36.73637833,2548.0,2547.9,0.78481]
[1750411725700,35.45477833,2548.0,2547.9,0.78481]
[1750411726200,11.35977833,2548.0,2547.9,0.78481]
[1750411727703,10.57499833,2548.0,2547.9,0.78481]
[1750411728005,54.7298,2548.3,2548.2,0.78472]
[1750411728321,35.31007517,2548.3,2548.2,0.78472]
[1750411729008,39.17065978,2548.3,2548.2,0.78472]
[1750411729213,40.52175978,2548.3,2548.2,0.78472]
[1750411730902,38.38596978,2548.3,2548.2,0.78472]
[1750411731205,35.30707517,2548.3,2548.2,0.78472]
[1750411731902,10.57437517,2548.3,2548.2,0.78472]
[1750411732102,10.1276,2548.6,2548.5,0.78463]
[1750411732303,35.29318989,2548.6,2548.5,0.78463]
[1750411732506,27.9266,2548.6,2548.5,0.78463]
[1750411732808,6.292,2548.7,2548.6,0.7846]
[1750411733004,6.292,2548.7,2548.4,2.60342]
[1750411733005,0.6278,2548.8,2548.7,0.78456]
[1750411733303,6.292,2548.8,2548.7,0.78456]
[1750411733508,3.2078,2548.9,2548.8,0.78453]
[1750411734605,24.7188,2549.0,2548.9,0.7845]
[1750411734797,0.6278,2549.0,2548.9,0.7845]
[1750411734998,6.292,2549.1,2549.0,0.78447]
[1750411735194,3.2078,2549.2,2549.1,0.78444]
[1750411738203,3.2078,2549.2,2549.1,3.86033461]
[1750411738412,6.292,2549.5,2549.4,0.78435]
[1750411739907,3.8423,2549.6,2549.5,0.78432]
[1750411741515,3.2078,2549.6,2549.5,0.78432]
[1750411744015,3.2078,2549.6,2549.5,2.10832]
[1750411745514,0.6693,2550.0,2549.9,0.7842]
[1750411748517,1.3281,2550.4,2550.3,0.78407]
[1750411748518,35.67797,2550.4,2550.3,0.78407]
[1750411748721,36.34787,2550.4,2550.3,0.78407]
[1750411749113,12.26387,2550.4,2550.3,0.78407]
[1750411749319,36.35887,2550.4,2550.3,0.78407]
[1750411749520,12.26387,2550.4,2550.3,0.78407]
[1750411749713,36.35787,2550.4,2550.3,0.78407]
[1750411750117,11.4798,2550.4,2550.3,0.78407]
[1750411750311,35.5708,2550.4,2550.2,0.78407]
[1750411750515,0.78413,2550.2,2549.8,3.2078]
[1750411750824,25.3576,2550.1,2550.0,0.78416]
[1750411751517,26.14176,2550.1,2550.0,0.78416]
[1750411751910,29.21765461,2550.1,2550.0,0.78416]
[1750411753220,0.7842,2550.0,2549.9,0.78417]
[1750411753518,5.76639461,2550.0,2549.9,0.78417]
[1750411753715,12.03939461,2550.0,2549.9,0.78417]
[1750411754511,12.03939461,2550.0,2549.9,1.70417]
[1750411756119,8.9635,2550.0,2549.9,1.70417]
[1750411756316,12.03939461,2550.0,2549.9,1.70417]
[1750411759722,1.96056,2549.9,2549.3,0.78434]
[1750411759925,3.86027461,2549.4,2549.3,0.78434]
[1750411760223,34.21427461,2549.4,2549.3,0.78434]
[1750411760822,35.53297461,2549.4,2549.3,0.78434]
[1750411762432,36.59875863,2549.4,2549.3,0.78434]
[1750411762629,35.81437863,2549.4,2548.7,3.2078]
[1750411762826,3.2078,2548.8,2548.7,0.78456]
[1750411763023,33.9648,2548.8,2548.7,0.78456]
[1750411763221,0.78457,2548.7,2548.3,5.71795461]
[1750411763423,24.512,2548.6,2548.5,0.78463]
[1750411764422,10.1334,2548.8,2548.7,0.78456]
[1750411764727,4.92635373,2548.8,2548.7,0.78456]
[1750411764929,35.70735373,2548.8,2548.7,0.78456]
[1750411765126,0.78462,2548.6,2548.5,0.78462]
[1750411765430,0.78463,2548.5,2548.4,0.78465]
[1750411765635,28.49943,2548.5,2548.4,0.78465]
[1750411766633,27.7148,2548.5,2548.4,0.78465]
[1750411767333,28.49943,2548.5,2548.4,0.78465]
[1750411768535,27.7148,2548.5,2548.4,0.78465]
[1750411769030,28.49943,2548.5,2548.4,0.78465]
[1750411769735,27.7148,2548.5,2548.4,0.78465]
[1750411770033,28.49943,2548.5,2548.4,0.78465]
[1750411770228,27.7148,2548.5,2548.4,0.78465]
[1750411770632,28.49943,2548.5,2548.4,0.78465]
[1750411771435,0.78466,2548.4,2548.3,7.05867]
[1750411771742,0.78466,2548.4,2548.3,6.274]
[1750411772133,0.78471,2548.3,2548.2,0.78469]
[1750411772439,0.78471,2548.3,2548.2,7.05969]
[1750411772638,0.78471,2548.3,2548.1,0.6893]
[1750411772639,0.78475,2548.1,2548.0,3.99257]
[1750411772938,0.78481,2548.0,2547.9,0.78479]
[1750411773749,0.7848,2548.0,2547.9,7.27779]
[1750411774152,0.7848,2548.0,2547.9,0.78479]
[1750411775151,3.2078,2548.2,2547.9,3.07589461]
[1750411775342,3.99255,2548.2,2548.1,0.78475]
[1750411775542,28.45355,2548.2,2548.1,0.78475]
[1750411775950,0.78478,2548.1,2548.0,0.78476]
[1750411776655,0.78481,2548.0,2547.9,0.78481]
[1750411778549,0.78478,2548.1,2548.0,0.78475]
[1750411779458,0.78481,2548.0,2547.9,0.7848]
[1750411780455,0.78477,2548.1,2548.0,0.78475]
[1750411781555,3.99254,2548.2,2548.1,0.78475]
[1750411781860,28.41654,2548.2,2548.1,0.78475]
[1750411783160,1.96191,2548.1,2547.7,2.59626]
[1750411783351,3.2078,2547.9,2547.8,7.27884]
[1750411783855,3.99261,2547.9,2547.8,7.27884]
[1750411784552,3.2078,2547.9,2547.8,7.27884]
[1750411784851,3.99261,2547.9,2547.8,7.27884]
[1750411785053,3.2078,2547.9,2547.8,7.27884]
[1750411785252,3.99261,2547.9,2547.8,7.27884]
[1750411786260,3.2078,2547.9,2547.8,7.27884]
[1750411786558,3.2078,2547.9,2547.8,0.78484]
[1750411786744,3.2078,2547.9,2547.8,7.27884]
[1750411787061,3.2078,2547.9,2547.8,10.35473461]
[1750411787362,3.2078,2547.9,2547.8,11.67013461]
[1750411787555,3.2078,2547.9,2547.8,5.17613461]
[1750411787753,3.2078,2547.9,2547.8,11.67013461]
[1750411789356,3.2078,2547.9,2547.8,8.59424]
[1750411789555,3.2078,2547.9,2547.8,11.67013461]
[1750411794158,3.2078,2547.9,2547.8,7.27884]
[1750411796762,3.8778,2547.9,2547.8,7.27884]
[1750411798266,3.8778,2547.9,2547.8,0.78484]
[1750411798470,3.8778,2547.9,2547.8,7.27884]
[1750411803670,3.8778,2547.9,2547.8,0.78484]
[1750411803858,3.8778,2547.9,2547.8,7.16384]
[1750411804964,3.8778,2547.9,2547.8,0.78484]
[1750411805167,3.8778,2547.9,2547.8,7.16384]
[1750411806164,3.8778,2547.9,2547.8,3.86073461]
[1750411806467,3.8778,2547.9,2547.8,10.23973461]
[1750411808671,4.5846,2548.3,2548.2,0.78472]
[1750411808871,6.44773177,2548.3,2548.2,0.78472]
[1750411809667,6.44772177,2548.3,2548.2,0.78472]
[1750411811068,6.44772177,2548.3,2548.2,1.70472]
[1750411811675,4.28622177,2548.3,2548.2,1.70472]
[1750411812073,5.07091177,2548.3,2548.2,1.70472]
[1750411812270,4.28622177,2548.3,2548.2,1.70472]
[1750411812572,1.07842177,2548.3,2548.2,8.08372]
[1750411814674,0.6325,2548.4,2548.3,0.78469]
[1750411815172,1.70869116,2548.4,2548.3,0.78469]
[1750411821083,1.70869116,2548.4,2548.3,3.86058461]
[1750411821380,1.07619116,2548.4,2548.3,3.86058461]
[1750411821583,3.8836,2548.6,2548.5,0.78463]
[1750411821881,4.95859954,2548.6,2548.5,0.78463]
[1750411823374,3.2078,2548.6,2548.5,3.86052461]
[1750411823879,0.6622,2548.9,2548.8,0.78454]
[1750411823880,3.87,2548.9,2548.8,0.78454]
[1750411824077,1.07479684,2548.9,2548.8,0.78454]
[1750411824578,3.07589461,2548.9,2548.8,0.78454]
[1750411824772,4.28200659,2548.9,2548.8,0.78454]
[1750411824970,3.2078,2548.9,2548.8,0.78454]
[1750411828878,3.2078,2548.9,2548.8,2.14584]
[1750411831983,3.87,2549.2,2549.1,0.78445]
[1750411832280,4.9400478,2549.2,2549.1,0.78445]
[1750411833677,6.3184478,2549.2,2549.1,0.78445]
[1750411833974,7.1028678,2549.2,2549.1,0.78445]
[1750411834582,9.39434241,2549.2,2549.1,0.78445]
[1750411838184,6.3184478,2549.2,2549.1,0.78445]
[1750411839071,4.9400478,2549.2,2549.1,0.78445]
[1750411839276,4.9400478,2549.2,2549.1,3.86034461]
[1750411839583,3.87,2549.2,2549.1,0.78445]
[1750411840679,5.1335,2549.2,2549.1,0.78445]
[1750411843881,3.87,2549.2,2549.1,0.78445]
[1750411845281,0.6622,2549.2,2549.1,0.78445]
[1750411845475,3.2078,2549.6,2549.5,0.78433]
[1750411845681,4.27918133,2549.6,2549.5,0.78433]
[1750411846284,3.2078,2549.6,2549.5,0.78433]
[1750411848591,3.8611,2549.6,2549.5,0.78433]
[1750411855601,3.2078,2549.6,2549.5,1.70433]
[1750411856989,3.2078,2549.6,2549.5,2.98963]
[1750411857695,3.2078,2549.6,2549.5,9.30163]
[1750411859402,3.2078,2549.6,2549.5,8.01633]
[1750411859603,3.2078,2549.6,2549.5,1.70433]
[1750411859810,3.2078,2549.6,2549.5,8.01633]
[1750411860703,3.2078,2549.6,2549.5,1.70433]
[1750411860910,3.2078,2549.6,2549.5,8.01633]
[1750411861510,3.2078,2549.6,2549.5,1.70433]
[1750411862004,3.9921,2549.6,2549.5,1.70433]
[1750411862204,7.06799461,2549.6,2549.5,1.70433]
[1750411862506,13.12577965,2549.6,2549.5,0.92]
[1750411862902,13.79937965,2549.6,2549.5,0.92]
[1750411863100,0.78445,2549.2,2548.9,1.96123]
[1750411863308,7.06814461,2549.2,2549.1,0.78441]
[1750411863613,0.78449,2549.1,2549.0,0.78446]
[1750411864904,24.079,2549.1,2548.8,0.78452]
[1750411865104,3.86040461,2549.0,2548.9,0.7845]
[1750411865801,0.78454,2548.9,2548.8,0.78454]
[1750411866007,0.78455,2548.8,2548.7,0.78456]
[1750411866208,1.84292628,2548.8,2548.7,0.78456]
[1750411867214,0.7846,2548.7,2548.6,0.78461]
[1750411867609,3.07589461,2548.7,2548.2,0.92]
[1750411867809,27.2948,2548.6,2548.5,0.78461]
[1750411868616,28.07941,2548.6,2548.5,0.78461]
[1750411868816,0.78464,2548.5,2548.4,0.78465]
[1750411869013,0.78467,2548.4,2548.3,0.78468]
[1750411869714,0.78465,2548.5,2548.4,0.78465]
[1750411869920,34.34542,2548.6,2548.5,0.78464]
[1750411870312,39.34542,2548.6,2548.5,0.78464]
[1750411870712,0.78465,2548.5,2548.4,0.78465]
[1750411871106,5.78465,2548.5,2548.4,0.78465]
[1750411871419,0.78465,2548.5,2548.4,0.78465]
[1750411873016,3.86055461,2548.5,2548.4,0.78467]
[1750411873220,3.07589461,2548.5,2548.4,0.78467]
[1750411874217,0.7847,2548.4,2548.3,0.78469]
[1750411874812,3.2078,2548.6,2548.2,1.5598]
[1750411875006,24.85566,2548.5,2548.4,0.78464]
[1750411875420,24.071,2548.5,2548.4,0.78464]
[1750411875621,24.85564,2548.5,2548.4,0.78464]
[1750411876118,3.99243,2548.6,2548.5,0.78464]
[1750411876307,28.06443,2548.6,2548.5,0.78464]
[1750411877719,0.78467,2548.5,2548.4,0.78465]
[1750411877921,0.78469,2548.4,2548.3,0.78466]
[1750411878423,0.78466,2548.5,2548.4,0.78464]
[1750411880423,0.7847,2548.4,2548.3,0.78467]
[1750411883825,0.7847,2548.3,2548.2,1.70472]
[1750411884125,28.0665,2548.3,2548.2,2.34712]
[1750411884724,28.0665,2548.3,2548.2,1.70472]
[1750411885224,29.3522,2548.3,2548.2,0.92]
[1750411885528,29.3522,2548.3,2548.2,1.70473]
[1750411886424,27.2818,2548.3,2548.2,1.70473]
[1750411886617,28.0665,2548.3,2548.2,1.70473]
[1750411887624,0.78483,2548.0,2547.9,0.78479]
[1750411887819,28.06663,2548.0,2547.9,0.78479]
[1750411888525,28.06659,2548.0,2547.9,0.78479]
[1750411892931,0.78482,2547.9,2547.8,1.41473]
[1750411893133,7.05382,2547.9,2547.8,1.41473]
[1750411894327,6.269,2547.9,2547.8,1.41473]
[1750411894531,7.05382,2547.9,2547.8,1.41473]
[1750411898326,6.269,2547.9,2547.8,1.41473]
[1750411898625,7.05382,2547.9,2547.8,1.41473]
[1750411899336,0.78496,2547.6,2547.5,0.78492]
[1750411899530,24.86096,2547.6,2547.5,0.78492]
[1750411901436,24.86092,2547.6,2547.5,0.78492]
[1750411903836,24.076,2547.6,2547.5,0.78492]
[1750411904134,24.86092,2547.6,2547.5,0.78492]
[1750411905731,24.076,2547.6,2547.1,1.96266]
[1750411905935,2.04087,2547.5,2547.4,0.78498]
[1750411906134,25.53025,2547.6,2547.5,0.78495]
[1750411906437,0.785,2547.5,2547.4,0.78495]
[1750411906834,0.78501,2547.4,2547.3,0.78498]
[1750411907134,24.86201,2547.4,2547.3,0.78498]
[1750411908839,0.78504,2547.3,2547.2,0.78501]
[1750411910744,31.123,2547.4,2547.3,0.78501]
[1750411911044,34.3308,2547.4,2547.3,0.78501]
[1750411911844,33.5458,2547.4,2547.3,0.78501]
[1750411912345,9.4688,2547.4,2547.3,0.78501]
[1750411912646,33.5468,2547.4,2547.3,0.78501]
[1750411912843,33.5468,2547.4,2547.3,2.03451]
[1750411913148,33.5468,2547.4,2547.3,5.11040461]
[1750411914044,27.2858,2547.4,2547.3,5.11040461]
[1750411916047,3.2078,2547.4,2547.3,5.11040461]
[1750411916452,3.2078,2547.4,2547.3,2.03451]
[1750411916653,3.2078,2547.4,2547.3,5.11040461]
[1750411917351,9.4688,2547.7,2547.6,0.78492]
[1750411917742,3.2078,2547.7,2547.6,0.78492]
[1750411917946,3.2078,2547.7,2547.6,2.16192]
[1750411918348,3.99269,2547.7,2547.6,0.78492]
[1750411918551,0.78492,2547.6,2547.5,1.42784]
[1750411921759,3.99271,2547.7,2547.6,0.78492]
[1750411922054,0.78492,2547.6,2547.5,1.42783]
[1750411922650,0.78492,2547.6,2547.5,0.6429]
[1750411922844,0.78498,2547.4,2547.3,0.92]
[1750411923057,28.06778,2547.4,2547.3,1.70501]
[1750411923759,37.40467461,2547.4,2547.3,0.92]
[1750411923963,0.78511,2547.1,2547.0,0.78508]
[1750411924452,0.78506,2547.2,2547.1,0.78504]
[1750411924862,34.3288,2547.4,2547.3,0.78501]
[1750411925256,3.2078,2547.4,2547.3,3.86090461]